fUST/lending_fUST_20240213
["ID","MTS","AMOUNT","RATE_DAILY","PERIOD"]
[313852475,1707753986554,1358.70066073,0.00018244,5]
[313852487,1707753991246,344.98720625,0.00018244,2]
[313852493,1707753995276,685.97455032,0.00018244,2]
[313852496,1707753996453,5885.99771759,0.00018244,2]
[313852505,1707754000758,1070.62674652,0.00017996,2]
[313852656,1707754202593,255.94332673,0.00017996,5]
[313852657,1707754212415,10214.47483209,0.00017996,2]
[313852703,1707754232344,-1759.17236477,0.00018519,3]
[313852705,1707754232354,-719.12678012,0.0001852,2]
[313852708,1707754232366,-1027.98484013,0.0001852,2]
[313852710,1707754232375,-296.00594534,0.00018521,2]
[313852712,1707754232384,-2157.73984565,0.00018521,2]
[313852714,1707754232395,-652.85347624,0.00018521,2]
[313852718,1707754232415,-164.29424912,0.00018521,2]
[313852721,1707754232424,-733.8779113,0.00018533,2]
[313852724,1707754232434,-200.0,0.00019,2]
[313852728,1707754232444,-365.17074354,0.00019178,2]
[313852731,1707754232453,-500.0,0.00019178,2]
[313852734,1707754232465,-500.0,0.00019178,2]
[313852737,1707754232475,-500.0,0.00019178,2]
[313852740,1707754232484,-500.0,0.00019178,2]
[313852742,1707754232494,-500.0,0.00019178,2]
[313852744,1707754232503,-500.0,0.00019178,2]
[313852746,1707754232512,-500.0,0.00019178,2]
[313852748,1707754232522,-500.0,0.00019178,2]
[313852750,1707754232531,-500.0,0.00019178,2]
[313852752,1707754232540,-168.923902,0.00019178,2]
[313852754,1707754232550,-166.666666,0.00019178,2]
[313852756,1707754232559,-500.0,0.00019351,2]
[313852758,1707754232568,-4233.72264743,0.00019397,2]
[313852760,1707754232580,-548.25052961,0.00019397,2]
[313852762,1707754232590,-433.96855876,0.00019452,2]
[313852764,1707754232599,-500.0,0.00019452,2]
[313852766,1707754232609,-1115.76610401,0.000195,2]
[313852768,1707754232618,-500.0,0.00019726,2]
[313852770,1707754232627,-586.59264408,0.00019988,3]
[313853041,1707754242034,-2715.51893638,0.00019988,3]
[313853043,1707754242046,-207.00841954,0.00019988,3]
[313853045,1707754242059,-2302.65312028,0.00019988,3]
[313853047,1707754242071,-2165.62687972,0.00019988,3]
[313853049,1707754242081,-3723.57,0.00019988,3]
[313853051,1707754242091,-8910.68,0.00019988,2]
[313853053,1707754242100,-500.0,0.00019988,2]
[313853055,1707754242110,-525.36,0.00019988,2]
[313853057,1707754242119,-3164.82,0.00019989,3]
[313853059,1707754242131,-273.59939744,0.00019996,2]
[313853061,1707754242142,-155.15521974,0.00019996,2]
[313853064,1707754242153,-2717.98041473,0.00019996,5]
[313853066,1707754242163,-237.23888705,0.00019996,2]
[313853068,1707754242172,-175.6097996,0.00019996,2]
[313853070,1707754242181,-535.50901674,0.00019996,2]
[313853072,1707754242191,-196.00038664,0.00019996,2]
[313853074,1707754242200,-156.87646366,0.00019996,2]
[313853076,1707754242210,-1945.27553072,0.00019997,2]
[313853078,1707754242219,-155.07598723,0.00019997,2]
[313853079,1707754242229,-647.70453213,0.00019998,2]
[313853082,1707754242240,-10217.41392229,0.00019998,2]
[313853084,1707754242249,-500.0,0.00019998,2]
[313853086,1707754242259,-5364.56,0.00019998,2]
[313853088,1707754242274,-11378.92,0.00019998,2]
[313853090,1707754242287,-500.0,0.00019998,2]
[313853092,1707754242296,-500.0,0.00019998,2]
[313853094,1707754242307,-500.0,0.00019998,2]
[313853096,1707754242316,-519.69,0.00019998,2]
[313853098,1707754242325,-2394.94,0.00019998,2]
[313853100,1707754242334,-712.58,0.00019998,2]
[313853101,1707754242346,-320.90632725,0.00019998,2]
[313853103,1707754242355,-590.45,0.00019998,2]
[313853105,1707754242365,-1346.36,0.00019998,2]
[313853107,1707754242374,-500.0,0.00019999,2]
[313853109,1707754242383,-500.0,0.00019999,2]
[313853111,1707754242393,-500.0,0.00019999,2]
[313853113,1707754242402,-500.0,0.00019999,2]
[313853116,1707754242412,-500.0,0.00019999,2]
[313853118,1707754242425,-500.0,0.00019999,2]
[313853120,1707754242434,-500.0,0.00019999,2]
[313853122,1707754242443,-500.0,0.00019999,2]
[313853124,1707754242453,-500.0,0.00019999,2]
[313853126,1707754242462,-500.0,0.00019999,2]
[313853128,1707754242472,-500.0,0.00019999,2]
[313853130,1707754242481,-500.0,0.00019999,2]
[313853132,1707754242490,-500.0,0.00019999,2]
[313853134,1707754242500,-500.0,0.00019999,2]
[313853136,1707754242509,-617.62,0.00019999,2]
[313853138,1707754242522,-500.0,0.00019999,2]
[313853139,1707754242532,-500.0,0.00019999,2]
[313853140,1707754242541,-259.77473987,0.00019999,2]
[313853141,1707754242550,-985.21,0.00019999,2]
[313853143,1707754242559,-500.0,0.00019999,2]
[313853145,1707754242568,-500.0,0.00019999,2]
[313853146,1707754242577,-358.09302202,0.00019999,2]
[313853148,1707754242586,-500.0,0.00019999,2]
[313853150,1707754242595,-500.0,0.00019999,2]
[313853152,1707754242605,-389.92955709,0.00019999,2]
[313853154,1707754242614,-500.0,0.00019999,2]
[313853156,1707754242623,-2039.65,0.00019999,2]
[313853158,1707754242631,-500.0,0.00019999,2]
[313853160,1707754242641,-500.0,0.00019999,2]
[313853162,1707754242650,-151.87054299,0.00019999,2]
[313853164,1707754242659,-500.0,0.00019999,2]
[313853166,1707754242670,-500.0,0.00019999,2]
[313853168,1707754242679,-1234.09,0.00019999,2]
[313853170,1707754242688,-500.0,0.00019999,2]
[313853172,1707754242697,-425.10550484,0.00019999,2]
[313853174,1707754242707,-500.0,0.00019999,2]
[313853176,1707754242716,-500.0,0.00019999,2]
[313853178,1707754242726,-500.0,0.00019999,2]
[313853179,1707754242736,-529.04348599,0.00019999,2]
[313853180,1707754242746,-500.0,0.00019999,2]
[313853181,1707754242756,-28.33040437,0.00019999,2]
[313853205,1707754242936,-154.90705577,0.00019987,3]
[313853208,1707754242946,-487.71070619,0.00019999,2]
[313853212,1707754242955,-1346.79,0.00019999,2]
[313853215,1707754242965,-210.93574206,0.00019999,2]
[313853218,1707754242975,-500.0,0.00019999,2]
[313853221,1707754242984,-500.0,0.00019999,2]
[313853223,1707754242993,-500.96304012,0.00019999,2]
[313853226,1707754243002,-8648.78,0.00019999,2]
[313853229,1707754243012,-1270.24,0.00019999,2]
[313853232,1707754243021,-78.18209096,0.00019999,2]
[313853289,1707754243662,-1250.43587811,0.00019999,2]
[313853311,1707754243788,-1137.19491836,0.00019999,2]
[313853615,1707754246473,-329.41904899,0.000195,2]
[313853617,1707754246485,-261.71076217,0.00019986,7]
[313853619,1707754246494,-295.25244177,0.00019986,2]
[313853621,1707754246503,-206.40785409,0.00019998,3]
[313853624,1707754246515,-77.18806601,0.00019998,3]
[313853626,1707754246524,-665.79711257,0.00019999,2]
[313853628,1707754246533,-500.0,0.00019999,2]
[313853629,1707754246542,-4601.86,0.00019999,2]
[313853632,1707754246551,-5917.09,0.00019999,2]
[313853634,1707754246560,-500.0,0.00019999,2]
[313853636,1707754246569,-1523.93,0.00019999,2]
[313853638,1707754246578,-500.0,0.00019999,2]
[313853640,1707754246587,-800.37,0.00019999,2]
[313853642,1707754246596,-500.0,0.00019999,2]
[313853644,1707754246605,-520.12676777,0.00019999,2]
[313853646,1707754246614,-500.0,0.00019999,2]
[313853648,1707754246623,-591.19612144,0.00019999,2]
[313853650,1707754246632,-976.43,0.00019999,2]
[313853652,1707754246642,-500.0,0.00019999,2]
[313853654,1707754246651,-300.0,0.0002,2]
[313853655,1707754246660,-2092.52534233,0.0002,2]
[313853658,1707754246671,-500.0,0.0002,2]
[313853659,1707754246680,-681.44085564,0.0002,2]
[313853661,1707754246690,-1000.0,0.0002,20]
[313853663,1707754246699,-200.0,0.00020136,2]
[313853665,1707754246708,-8910.68,0.00020262,2]
[313853667,1707754246718,-525.36,0.00020262,2]
[313853669,1707754246730,-1859.09579688,0.00020271,2]
[313853671,1707754246740,-324.28768484,0.00020271,2]
[313853673,1707754246752,-158.12303353,0.00020272,2]
[313853675,1707754246761,-500.0,0.00020272,2]
[313853677,1707754246771,-5364.56,0.00020272,2]
[313853679,1707754246781,-11378.92,0.00020272,2]
[313853681,1707754246791,-500.0,0.00020272,2]
[313853683,1707754246800,-500.0,0.00020272,2]
[313853685,1707754246810,-500.0,0.00020272,2]
[313853687,1707754246819,-519.69,0.00020272,2]
[313853689,1707754246829,-2394.94,0.00020272,2]
[313853691,1707754246838,-712.58,0.00020272,2]
[313853693,1707754246848,-590.45,0.00020272,2]
[313853695,1707754246857,-1346.36,0.00020272,2]
[313853698,1707754246867,-500.0,0.00020273,2]
[313853699,1707754246877,-500.0,0.00020273,2]
[313853701,1707754246886,-416.71414332,0.00020273,2]
[313853703,1707754246896,-555.08351524,0.00020273,2]
[313853705,1707754246905,-500.0,0.00020273,2]
[313853707,1707754246914,-235.3838657,0.00020273,2]
[313853709,1707754246924,-617.62,0.00020273,2]
[313853711,1707754246933,-985.21,0.00020273,2]
[313853713,1707754246942,-500.0,0.00020273,2]
[313853715,1707754246952,-500.0,0.00020273,2]
[313853717,1707754246962,-500.0,0.00020273,2]
[313853719,1707754246972,-2039.65,0.00020273,2]
[313853721,1707754246986,-500.0,0.00020273,2]
[313853724,1707754246997,-500.0,0.00020273,2]
[313853726,1707754247007,-500.0,0.00020273,2]
[313853727,1707754247016,-500.0,0.00020273,2]
[313853729,1707754247026,-1234.09,0.00020273,2]
[313853731,1707754247036,-500.0,0.00020273,2]
[313853734,1707754247046,-500.0,0.00020273,2]
[313853736,1707754247059,-500.0,0.00020273,2]
[313853738,1707754247069,-342.90716355,0.00020273,2]
[313853740,1707754247079,-1346.79,0.00020273,2]
[313853742,1707754247089,-500.0,0.00020273,2]
[313853744,1707754247098,-8648.78,0.00020273,2]
[313853746,1707754247108,-3131.61,0.00020273,2]
[313853748,1707754247118,-1270.24,0.00020273,2]
[313853750,1707754247129,-500.0,0.00020273,2]
[313853752,1707754247139,-4601.86,0.00020273,2]
[313853754,1707754247148,-5917.09,0.00020273,2]
[313853755,1707754247157,-1523.93,0.00020273,2]
[313853758,1707754247167,-500.0,0.00020273,2]
[313853760,1707754247177,-800.37,0.00020273,2]
[313853762,1707754247187,-976.43,0.00020273,2]
[313853763,1707754247196,-500.0,0.00020273,2]
[313853765,1707754247206,-8910.68,0.00020536,2]
[313853767,1707754247215,-525.36,0.00020536,2]
[313853769,1707754247224,-500.0,0.00020546,2]
[313853771,1707754247234,-5364.56,0.00020546,2]
[313853773,1707754247243,-10925.51469837,0.00020546,2]
[313853776,1707754247256,-453.40530163,0.00020546,2]
[313853778,1707754247265,-500.0,0.00020546,2]
[313853780,1707754247274,-500.0,0.00020546,2]
[313853782,1707754247283,-500.0,0.00020546,2]
[313853784,1707754247292,-519.69,0.00020546,2]
[313853786,1707754247301,-2394.94,0.00020546,2]
[313853788,1707754247310,-712.58,0.00020546,2]
[313853790,1707754247320,-590.45,0.00020546,2]
[313853792,1707754247329,-250.0,0.00020546,2]
[313853794,1707754247338,-1346.36,0.00020546,2]
[313853796,1707754247346,-500.0,0.00020547,2]
[313853797,1707754247355,-500.0,0.00020547,2]
[313853799,1707754247364,-617.62,0.00020547,2]
[313853801,1707754247374,-985.21,0.00020547,2]
[313853803,1707754247383,-500.0,0.00020547,2]
[313853805,1707754247392,-500.0,0.00020547,2]
[313853807,1707754247401,-500.0,0.00020547,2]
[313853809,1707754247410,-2039.65,0.00020547,2]
[313853811,1707754247419,-500.0,0.00020547,2]
[313853813,1707754247429,-500.0,0.00020547,2]
[313853815,1707754247439,-500.0,0.00020547,2]
[313853817,1707754247451,-500.0,0.00020547,2]
[313853819,1707754247461,-1234.09,0.00020547,2]
[313853820,1707754247470,-500.0,0.00020547,2]
[313853821,1707754247482,-1346.79,0.00020547,2]
[313853822,1707754247492,-500.0,0.00020547,2]
[313853823,1707754247503,-8648.78,0.00020547,2]
[313853824,1707754247514,-3131.61,0.00020547,2]
[313853825,1707754247523,-1270.24,0.00020547,2]
[313853826,1707754247541,-500.0,0.00020547,2]
[313853827,1707754247551,-4601.86,0.00020547,2]
[313853828,1707754247560,-5917.09,0.00020547,2]
[313853829,1707754247569,-1523.93,0.00020547,2]
[313853830,1707754247578,-500.0,0.00020547,2]
[313853831,1707754247587,-800.37,0.00020547,2]
[313853832,1707754247596,-976.43,0.00020547,2]
[313853833,1707754247605,-500.0,0.00020547,2]
[313853834,1707754247614,-261.0754653,0.00020615,2]
[313853835,1707754247623,-155.28046037,0.00020615,2]
[313853836,1707754247632,-155.12707126,0.00020616,2]
[313853837,1707754247642,-748.51563919,0.00020616,3]
[313853838,1707754247650,-2275.48758132,0.00020618,2]
[313853839,1707754247659,-600.30398029,0.00020721,2]
[313853841,1707754247669,-2631.22664386,0.0002081,2]
[313853843,1707754247682,-257.30468228,0.0002081,2]
[313853847,1707754247703,-6022.14867386,0.0002081,2]
[313853849,1707754247712,-525.36,0.0002081,2]
[313853850,1707754247722,-3257.44614089,0.0002082,2]
[313853853,1707754247735,-384.22805085,0.0002082,2]
[313855253,1707754263020,125733.1633756,0.00017996,2]
[313858903,1707754452938,310.010842,0.00027397,120]
[313858961,1707754574572,384.778717,0.00021,30]
[313859081,1707754973665,232.508131,0.00027397,120]
[313859191,1707755229140,-2479.07297585,0.00017921,2]
[313859192,1707755229162,-1747.11162025,0.00017922,2]
[313859193,1707755229182,-420.844779,0.00017923,2]
[313859194,1707755229202,-567.6824724,0.00018019,2]
[313859195,1707755229235,-160.55683341,0.00018795,2]
[313859196,1707755229258,-408.01649571,0.000189,2]
[313859197,1707755229279,-1859.09579688,0.00018998,2]
[313859198,1707755229300,-26645.31420073,0.00019,2]
[313859200,1707755233100,-10529.19419738,0.00019,2]
[313859201,1707755233120,-184.3073688,0.00019078,2]
[313859202,1707755233141,-503.17000276,0.00019178,2]
[313859203,1707755233161,-503.67043007,0.00019178,2]
[313859204,1707755233181,-500.0,0.00019178,2]
[313859205,1707755233201,-220.21876738,0.00019178,2]
[313859206,1707755233222,-500.0,0.00019178,2]
[313859207,1707755233242,-500.0,0.00019178,2]
[313859208,1707755233262,-500.0,0.00019178,2]
[313859209,1707755233424,-500.0,0.00019178,2]
[313859210,1707755233446,-623.51,0.00019178,2]
[313859211,1707755233467,-500.0,0.00019178,2]
[313859212,1707755233488,-937.0,0.00019178,2]
[313859213,1707755233509,-7533.68,0.00019178,2]
[313859214,1707755233528,-715.66,0.00019178,2]
[313859215,1707755233549,-516.65,0.00019178,2]
[313859216,1707755233569,-500.0,0.00019178,2]
[313859217,1707755233590,-435.85331003,0.00019178,2]
[313859218,1707755233613,-1178.07,0.00019178,2]
[313859219,1707755233634,-500.0,0.00019178,2]
[313859220,1707755233654,-500.0,0.00019178,2]
[313859221,1707755233674,-500.0,0.00019178,2]
[313859222,1707755233695,-1137.75,0.00019178,2]
[313859223,1707755233716,-4692.73,0.00019178,2]
[313859224,1707755233735,-500.0,0.00019178,2]
[313859225,1707755233755,-500.0,0.00019178,2]
[313859226,1707755233775,-500.0,0.00019178,2]
[313859227,1707755233794,-291.71035562,0.00019178,2]
[313859228,1707755233815,-8787.87293361,0.00019178,2]
[313859229,1707755234098,-1429.53706639,0.00019178,2]
[313859230,1707755234120,-500.0,0.00019178,2]
[313859231,1707755234141,-500.0,0.00019178,2]
[313859232,1707755234162,-500.0,0.00019178,2]
[313859233,1707755234182,-166.666666,0.00019178,2]
[313859234,1707755234202,-299.554718,0.000193,3]
[313859235,1707755234223,-500.0,0.00019452,2]
[313859236,1707755234243,-500.0,0.00019452,2]
[313859237,1707755234264,-500.0,0.00019452,2]
[313859238,1707755234285,-623.51,0.00019452,2]
[313859239,1707755234306,-937.0,0.00019452,2]
[313859240,1707755234327,-7533.68,0.00019452,2]
[313859241,1707755234348,-715.66,0.00019452,2]
[313859242,1707755234370,-516.65,0.00019452,2]
[313859243,1707755234391,-500.0,0.00019452,2]
[313859244,1707755234413,-1178.07,0.00019452,2]
[313859245,1707755234449,-500.0,0.00019452,2]
[313859246,1707755234475,-500.0,0.00019452,2]
[313859247,1707755234498,-1137.75,0.00019452,2]
[313859248,1707755234525,-4692.73,0.00019452,2]
[313859249,1707755234548,-500.0,0.00019452,2]
[313859250,1707755234570,-500.0,0.00019452,2]
[313859251,1707755234593,-6544.047711,0.00019452,2]
[313859252,1707755239111,-3673.362289,0.00019452,2]
[313859253,1707755239133,-526.45,0.00019452,2]
[313859254,1707755239155,-500.0,0.00019452,2]
[313859255,1707755239176,-500.0,0.00019452,2]
[313859256,1707755239197,-500.0,0.00019726,2]
[313859257,1707755239218,-500.0,0.00019726,2]
[313859258,1707755239240,-500.0,0.00019726,2]
[313859259,1707755239262,-623.51,0.00019726,2]
[313859260,1707755239283,-937.0,0.00019726,2]
[313859261,1707755239304,-7533.68,0.00019726,2]
[313859262,1707755239325,-715.66,0.00019726,2]
[313859263,1707755239346,-516.65,0.00019726,2]
[313859264,1707755239370,-500.0,0.00019726,2]
[313859265,1707755239392,-1178.07,0.00019726,2]
[313859266,1707755239414,-500.0,0.00019726,2]
[313859267,1707755239435,-1137.75,0.00019726,2]
[313859268,1707755239458,-4692.73,0.00019726,2]
[313859269,1707755239478,-500.0,0.00019726,2]
[313859270,1707755239498,-500.0,0.00019726,2]
[313859271,1707755239519,-10217.41,0.00019726,2]
[313859272,1707755239542,-500.0,0.00019726,2]
[313859273,1707755239562,-500.0,0.00019726,2]
[313859274,1707755239583,-200.0,0.00019949,2]
[313859275,1707755239605,-2126.51,0.00019977,3]
[313859276,1707755239625,-649.00119694,0.00019986,2]
[313859277,1707755239645,-609.8958986,0.00019986,3]
[313859278,1707755239664,-154.8915759,0.00019986,2]
[313859279,1707755239683,-500.0,0.00019987,2]
[313859280,1707755239703,-602.57,0.00019987,2]
[313859281,1707755239723,-248.77817227,0.00019987,2]
[313859282,1707755239744,-500.0,0.00019987,2]
[313859283,1707755239764,-500.0,0.00019987,2]
[313859284,1707755239783,-500.0,0.00019987,2]
[313859285,1707755239802,-369.71565687,0.00019987,2]
[313859286,1707755239822,-500.0,0.00019987,2]
[313859287,1707755239841,-537.09784472,0.00019987,2]
[313859288,1707755239862,-500.0,0.00019987,2]
[313859289,1707755239881,-504.20952575,0.00019987,2]
[313859290,1707755239901,-501.04436325,0.00019987,2]
[313859291,1707755239923,-2913.95,0.00019987,2]
[313859292,1707755239945,-4317.6,0.00019987,2]
[313859293,1707755239964,-311.14462462,0.00019987,2]
[313859294,1707755239985,-1382.3,0.00019987,2]
[313859295,1707755240005,-500.0,0.00019987,2]
[313859296,1707755240025,-500.0,0.00019987,2]
[313859297,1707755240047,-1866.2,0.00019987,2]
[313859298,1707755240069,-854.38,0.00019987,2]
[313859299,1707755240090,-500.0,0.00019987,2]
[313859300,1707755240111,-500.0,0.00019987,2]
[313859301,1707755240132,-500.0,0.00019987,2]
[313859302,1707755240153,-1100.66,0.00019987,2]
[313859303,1707755240174,-500.0,0.00019987,2]
[313859304,1707755240195,-7716.99,0.00019987,2]
[313859305,1707755240215,-500.0,0.00019987,2]
[313859306,1707755240237,-500.0,0.00019987,2]
[313859307,1707755240256,-500.0,0.00019987,2]
[313859308,1707755240276,-500.0,0.00019987,2]
[313859309,1707755240298,-5202.27,0.00019987,2]
[313859310,1707755240320,-789.9,0.00019987,2]
[313859311,1707755240340,-28574.30207995,0.00019995,2]
[313859312,1707755240363,-1224.46,0.00019997,2]
[313859313,1707755240386,-500.0,0.00019997,2]
[313859314,1707755240407,-500.0,0.00019997,2]
[313859315,1707755240429,-1335.79,0.00019997,2]
[313859316,1707755240450,-725.57,0.00019997,2]
[313859317,1707755240470,-1403.18,0.00019997,2]
[313859318,1707755240490,-500.0,0.00019997,2]
[313859319,1707755240510,-1170.25104904,0.00019998,2]
[313859320,1707755240531,-500.0,0.00019998,2]
[313859321,1707755240550,-500.0,0.00019999,2]
[313859322,1707755240570,-500.0,0.00019999,2]
[313859323,1707755240591,-500.0,0.00019999,2]
[313859324,1707755240612,-500.0,0.00019999,2]
[313859325,1707755240633,-500.0,0.00019999,2]
[313859326,1707755240652,-500.0,0.00019999,2]
[313859327,1707755240673,-500.0,0.00019999,2]
[313859328,1707755240692,-500.0,0.00019999,2]
[313859329,1707755240712,-500.0,0.00019999,2]
[313859330,1707755240732,-500.0,0.00019999,2]
[313859331,1707755240753,-508.60683973,0.00019999,2]
[313859332,1707755240773,-1924.11994091,0.0002,2]
[313859333,1707755240794,-2000.0,0.0002,2]
[313859334,1707755240814,-500.0,0.0002,2]
[313859335,1707755240834,-500.0,0.0002,2]
[313859336,1707755240855,-500.0,0.0002,2]
[313859337,1707755240876,-623.51,0.0002,2]
[313859338,1707755240896,-937.0,0.0002,2]
[313859339,1707755240918,-7533.68,0.0002,2]
[313859340,1707755240939,-715.66,0.0002,2]
[313859341,1707755240960,-516.65,0.0002,2]
[313859342,1707755240980,-357.29,0.0002,2]
[313859343,1707755241001,-1178.07,0.0002,2]
[313859344,1707755241146,-500.0,0.0002,2]
[313859345,1707755241167,-1137.75,0.0002,2]
[313859346,1707755241189,-4692.73,0.0002,2]
[313859347,1707755241210,-500.0,0.0002,2]
[313859348,1707755241230,-152.71,0.0002,2]
[313859349,1707755241251,-10217.41,0.0002,2]
[313859350,1707755241273,-500.0,0.0002,2]
[313859351,1707755241293,-500.0,0.0002,2]
[313859352,1707755241320,-1000.0,0.0002,20]
[313859353,1707755241341,-184.3073688,0.00020073,2]
[313859354,1707755241368,-250.0,0.00020171,2]
[313859355,1707755241391,-53614.02444097,0.00020172,2]
[313859356,1707755241411,-1206.75598362,0.00020173,2]
[313859357,1707755241431,-500.0,0.00020261,2]
[313859358,1707755241454,-500.0,0.00020261,2]
[313859359,1707755241474,-500.0,0.00020261,2]
[313859360,1707755241493,-500.0,0.00020261,2]
[313859361,1707755241513,-500.0,0.00020261,2]
[313859362,1707755241535,-2913.95,0.00020261,2]
[313859363,1707755241557,-4317.6,0.00020261,2]
[313859364,1707755241578,-1382.3,0.00020261,2]
[313859365,1707755241598,-500.0,0.00020261,2]
[313859366,1707755241619,-160.07575842,0.00020261,2]
[313859367,1707755241640,-1866.2,0.00020261,2]
[313859368,1707755241661,-854.38,0.00020261,2]
[313859369,1707755241682,-1100.66,0.00020261,2]
[313859370,1707755241704,-7716.99,0.00020261,2]
[313859371,1707755241724,-500.0,0.00020261,2]
[313859372,1707755241744,-500.0,0.00020261,2]
[313859373,1707755241764,-500.0,0.00020261,2]
[313859374,1707755241783,-500.0,0.00020261,2]
[313859375,1707755241803,-926.49416661,0.00020261,2]
[313859376,1707755243085,-4275.77583339,0.00020261,2]
[313859377,1707755243107,-789.9,0.00020261,2]
[313859378,1707755243127,-500.0,0.0002027,2]
[313859379,1707755243147,-1224.46,0.00020271,2]
[313859380,1707755243171,-500.0,0.00020271,2]
[313859381,1707755243191,-1335.79,0.00020271,2]
[313859382,1707755243212,-725.57,0.00020271,2]
[313859383,1707755243235,-1403.18,0.00020271,2]
[313859384,1707755243256,-500.0,0.00020271,2]
[313859385,1707755243276,-500.0,0.00020272,2]
[313859386,1707755243296,-500.0,0.00020273,2]
[313859387,1707755243315,-239.13758808,0.00020273,2]
[313859388,1707755243335,-500.0,0.00020273,2]
[313859389,1707755243356,-500.0,0.00020273,2]
[313859390,1707755243379,-500.0,0.00020273,2]
[313859391,1707755243399,-500.0,0.00020273,2]
[313859392,1707755243419,-510.49,0.00020273,2]
[313859393,1707755243441,-500.0,0.00020273,2]
[313859394,1707755243462,-500.0,0.00020273,2]
[313859395,1707755243482,-623.51,0.00020273,2]
[313859396,1707755243503,-937.0,0.00020273,2]
[313859397,1707755243525,-7533.68,0.00020273,2]
[313859398,1707755243545,-715.66,0.00020273,2]
[313859399,1707755243565,-516.65,0.00020273,2]
[313859400,1707755243586,-1178.07,0.00020273,2]
[313859401,1707755243608,-500.0,0.00020273,2]
[313859402,1707755243628,-1137.75,0.00020273,2]
[313859403,1707755243650,-4692.73,0.00020273,2]
[313859404,1707755243671,-500.0,0.00020273,2]
[313859405,1707755243692,-10217.41,0.00020273,2]
[313859406,1707755243713,-500.0,0.00020273,2]
[313859407,1707755243733,-500.0,0.00020273,2]
[313859408,1707755243753,-2717.98041473,0.00020535,5]
[313859409,1707755243773,-500.0,0.00020535,2]
[313859410,1707755243792,-500.0,0.00020535,2]
[313859411,1707755243813,-500.0,0.00020535,2]
[313859412,1707755243833,-500.0,0.00020535,2]
[313859413,1707755243853,-500.0,0.00020535,2]
[313859414,1707755243875,-2643.4813977,0.00020535,2]
[313860121,1707755438748,-1291.59702042,0.00019177,2]
[313860123,1707755438757,-2560.97,0.00019178,2]
[313860125,1707755438767,-3957.8,0.00019178,2]
[313860127,1707755438778,-1710.68,0.00019178,2]
[313860129,1707755438788,-1122.42,0.00019178,2]
[313860131,1707755438797,-1267.11,0.00019178,2]
[313860133,1707755438806,-500.0,0.00019178,2]
[313860135,1707755438816,-2095.57,0.00019178,2]
[313860137,1707755438825,-5964.16,0.00019178,2]
[313860139,1707755438834,-783.18,0.00019178,2]
[313860141,1707755438843,-500.0,0.00019178,2]
[313860143,1707755438852,-741.79,0.00019178,2]
[313860145,1707755438861,-1008.94,0.00019178,2]
[313860147,1707755438870,-500.0,0.00019178,2]
[313860148,1707755438879,-500.0,0.00019178,2]
[313860150,1707755438888,-932.64,0.00019178,2]
[313860152,1707755438898,-7073.91,0.00019178,2]
[313860154,1707755438907,-500.0,0.00019178,2]
[313860156,1707755438916,-500.0,0.00019178,2]
[313860158,1707755438925,-500.0,0.00019178,2]
[313860160,1707755438934,-4768.75,0.00019178,2]
[313860162,1707755438943,-3715.08,0.00019178,2]